bitfinex/quotes_ETHUSD_20240729
["timestamp","ask_amount","ask_price","bid_price","bid_amount"]
[1722261854037,2.99277,3341.4,3339.8,0.05986679]
[1722261854229,2.99277,3341.4,3340.3,2.99368]
[1722261854230,1.52382341,3341.3,3340.3,2.99368]
[1722261854592,0.43047735,3341.9,3340.4,0.05986054]
[1722261854799,1.52351595,3341.8,3340.8,2.99328]
[1722261854937,2.2859,3342.7,3340.9,3.05298871]
[1722261854938,2.99211,3342.2,3340.9,3.05298871]
[1722261855273,4.51556656,3342.1,3340.7,2.99336]
[1722261855491,1.52342656,3342.0,3340.8,0.299336]
[1722261855771,2.99204,3342.2,3341.1,2.99302]
[1722261855945,1.52337658,3342.1,3340.9,2.99314]
[1722261856146,2.99213,3342.1,3341.0,2.99311]
[1722261856346,2.99214,3342.1,3341.0,3.05295872]
[1722261856545,2.99204,3342.2,3341.1,2.993]
[1722261856747,2.99229,3342.0,3341.2,0.30528487]
[1722261856976,2.99242,3341.8,3340.3,2.3572]
[1722261857185,2.99318,3341.0,3340.3,2.3572]
[1722261857332,2.99321,3340.9,3340.3,2.3572]
[1722261857541,15.261,3342.4,3340.3,2.3572]
[1722261857542,3.157,3342.2,3340.3,2.3572]
[1722261857885,2.99258,3341.6,3340.4,0.23572]
[1722261858027,2.99209,3342.2,3340.4,0.23572]
[1722261858028,2.9921,3342.2,3341.0,2.9931]
[1722261858235,2.99227,3342.0,3341.1,0.29931]
[1722261858661,2.99136,3343.0,3341.1,0.29931]
[1722261858662,2.99188,3342.4,3341.1,0.29931]
[1722261858866,2.99151,3342.8,3341.2,0.05984746]
[1722261859050,2.99169,3342.6,3341.4,2.99268]
[1722261859246,2.99151,3342.8,3341.1,0.29931]
[1722261859469,2.99151,3342.8,3341.7,2.99248]
[1722261859643,2.99151,3342.8,3341.6,2.3718]
[1722261859644,2.99151,3342.8,3341.8,0.60225076]
[1722261859834,0.58859283,3343.2,3341.8,0.60225076]
[1722261859835,3.57980283,3343.2,3341.8,0.60225076]
[1722261860062,2.99116,3343.2,3341.8,0.60225076]
[1722261860261,2.99138,3343.0,3341.8,3.53479189]
[1722261860468,2.99098,3343.4,3342.1,2.99211]
[1722261860664,2.99121,3343.2,3342.2,0.3051943]
[1722261860847,2.99098,3343.4,3342.3,0.05983084]
[1722261861048,2.99105,3343.3,3342.3,0.05983084]
[1722261861263,4.263833,3343.9,3342.2,0.3051943]
[1722261861483,2.99089,3343.5,3342.3,0.93381943]
[1722261861778,2.991,3343.4,3342.3,0.38381943]
[1722261861937,2.99115,3343.2,3342.3,0.38381943]
[1722261862142,2.99093,3343.5,3342.3,3.37574943]
[1722261862353,2.99114,3343.3,3342.4,0.69087494]
[1722261862553,2.99097,3343.4,3342.4,0.69087494]
[1722261862755,2.99097,3343.4,3341.8,0.54241189]
[1722261862756,2.9919,3342.4,3341.2,2.99287]
[1722261862959,2.99111,3343.3,3341.0,2.99311]
[1722261863162,2.99111,3343.3,3341.1,2.99298]
[1722261863361,3.157,3343.4,3341.0,2.445]
[1722261863362,2.99206,3342.2,3341.0,2.445]
[1722261863562,2.99219,3342.1,3341.1,0.543815]
[1722261863784,2.99222,3342.0,3341.1,0.543815]
[1722261863957,2.99185,3342.5,3341.0,2.445]
[1722261864177,2.99246,3341.8,3341.0,2.445]
[1722261864380,2.99196,3342.3,3341.0,5.43811]
[1722261864687,2.99231,3341.9,3341.0,2.445]
[1722261864906,2.99187,3342.4,3341.1,0.05984888]
[1722261865104,2.99196,3342.3,3341.1,2.99298]
[1722261865423,2.9917,3342.6,3341.2,3.836029]
[1722261865608,2.99151,3342.8,3341.3,3.05267045]
[1722261865776,2.9916,3342.7,3341.6,2.99256]
[1722261865976,2.9916,3342.7,3341.7,0.0598392]
[1722261866211,2.9916,3342.7,3341.7,0.66435212]
[1722261866507,2.99142,3342.9,3341.8,0.05983921]
[1722261866688,6.157,3343.6,3341.8,0.05983921]
[1722261866689,2.99126,3343.1,3342.0,2.99221]
[1722261866890,2.99139,3343.0,3341.8,2.99239]
[1722261867076,2.99139,3343.0,3341.9,3.71107804]
[1722261867278,2.99081,3343.6,3342.2,2.99196]
[1722261867478,2.99105,3343.3,3342.2,2.2656]
[1722261867683,2.99142,3342.9,3342.2,2.2656]
[1722261868050,2.99215,3342.1,3341.5,2.3844]
[1722261868188,2.99178,3342.5,3341.5,2.3844]
[1722261868382,0.598347,3342.5,3341.5,2.3844]
[1722261868630,7.31,3343.6,3341.5,5.37704]
[1722261868786,2.496,3343.9,3341.5,5.37704]
[1722261868787,2.99147,3342.9,3341.5,5.37704]
[1722261868987,2.99147,3342.9,3341.5,2.3844]
[1722261869223,2.99132,3343.0,3341.9,2.99225]
[1722261869394,2.99147,3342.9,3342.0,0.299225]
[1722261869594,2.99072,3343.7,3341.5,5.37705]
[1722261869809,2.99194,3342.4,3341.5,2.3844]
[1722261869993,2.99111,3343.3,3341.6,2.99251]
[1722261870214,2.99154,3342.8,3341.2,2.99287]
[1722261870540,2.99193,3342.4,3340.9,2.421]
[1722261870747,3.0,3343.2,3340.9,2.421]
[1722261870748,0.299193,3342.3,3340.9,2.421]
[1722261870911,2.99208,3342.2,3340.7,2.99]
[1722261871253,2.99213,3342.1,3340.7,2.99]
[1722261871427,2.99276,3341.4,3340.7,2.99]
[1722261871761,2.99192,3342.4,3340.7,2.99]
[1722261871903,2.993,3341.2,3340.7,2.99]
[1722261872106,2.99303,3341.1,3340.7,2.99]
[1722261872412,2.99294,3341.2,3340.7,2.99]
[1722261872612,2.99329,3340.8,3339.6,2.2877]
[1722261872814,2.99367,3340.4,3339.6,2.2877]
[1722261873039,2.99399,3340.1,3338.8,6.52806]
[1722261873228,2.99304,3341.1,3339.1,2.2877]
[1722261873433,2.99358,3340.5,3339.1,2.2877]
[1722261873632,2.99324,3340.9,3339.1,2.2877]
[1722261873633,2.99406,3340.0,3339.1,2.2877]
[1722261874469,2.99412,3339.9,3339.1,2.2877]
[1722261874878,3.0,3341.0,3339.2,0.05988722]
[1722261875030,2.9942,3339.8,3339.1,2.2877]
[1722261875235,2.99397,3340.1,3339.1,2.2877]
[1722261875465,2.9942,3339.8,3339.1,2.2877]
[1722261875627,2.99394,3340.1,3339.1,2.2877]
[1722261876034,2.99387,3340.2,3339.1,2.2877]
[1722261876283,2.99346,3340.7,3339.3,2.99463]
[1722261876445,2.99346,3340.7,3339.4,0.05987733]
[1722261876649,2.99297,3341.2,3339.8,2.99418]
[1722261876964,2.99276,3341.4,3339.9,0.05986832]
[1722261877161,2.99248,3341.7,3340.0,3.54397]
[1722261877345,2.99304,3341.1,3340.0,0.55]
[1722261877529,2.99293,3341.2,3340.0,2.99398]
[1722261877734,2.99318,3341.0,3339.7,2.99419]
[1722261877967,2.99318,3341.0,3339.8,2.99418]
[1722261878180,2.99277,3341.4,3340.1,2.9939]
[1722261878343,2.99277,3341.4,3340.2,0.598799]
[1722261878529,2.99259,3341.6,3340.3,0.05986639]
[1722261878530,2.99265,3341.6,3340.3,0.05986639]
[1722261878736,2.99249,3341.7,3340.5,2.99356]
[1722261878971,2.99249,3341.7,3340.6,3.35865063]
[1722261879130,2.99258,3341.6,3340.6,0.36520063]
[1722261879335,2.99243,3341.8,3340.7,2.99336]
[1722261879537,2.99243,3341.8,3340.8,0.05985739]
[1722261879848,2.9924,3341.8,3340.8,0.05985739]
[1722261880052,0.36361467,3341.9,3340.8,0.05985739]
[1722261880268,3.157,3342.6,3339.9,2.99407]
[1722261880269,2.99312,3341.0,3339.9,2.99407]
[1722261880660,5.38472,3341.7,3339.5,0.41211443]
[1722261880661,5.5492,3341.7,3339.5,0.41211443]
[1722261880989,2.99369,3340.4,3339.3,8.42103]
[1722261881204,2.99327,3340.9,3339.6,2.9943]
[1722261881411,2.99327,3340.9,3339.5,2.99445]
[1722261881698,2.99385,3340.2,3339.3,5.4264]
[1722261881893,3.157,3341.4,3339.3,5.4264]
[1722261882098,2.99382,3340.3,3339.3,5.4264]
[1722261882390,2.99382,3340.3,3339.3,2.4364]
[1722261882695,2.99411,3339.9,3339.4,0.5959477]
[1722261882994,2.99411,3339.9,3339.3,2.4364]
[1722261882995,2.99392,3340.1,3339.3,2.4364]
[1722261883220,2.99417,3339.9,3338.9,2.99497]
[1722261883425,2.99403,3340.0,3338.9,2.99497]
[1722261883628,2.99403,3340.0,3339.0,4.014014]
[1722261883932,2.99384,3340.2,3339.1,2.99481]
[1722261884085,3.60747545,3341.2,3339.0,1.019114]
[1722261884283,0.91121317,3341.3,3338.8,5.463]
[1722261884284,2.99372,3340.4,3339.1,0.6482114]
[1722261884723,2.99372,3340.4,3339.2,3.05452015]
[1722261885034,2.99372,3340.4,3339.3,3.05451011]
[1722261885203,2.99349,3340.6,3339.3,3.05451011]
[1722261885523,0.299349,3340.5,3339.3,0.05987477]
[1722261885727,2.99303,3341.1,3339.9,2.99408]
[1722261885902,2.99303,3341.1,3340.0,3.05380773]
[1722261886093,2.99286,3341.3,3340.0,3.05380773]
[1722261886094,2.99286,3341.3,3340.2,2.99382]
[1722261886307,2.99286,3341.3,3340.3,0.66463289]
[1722261886537,2.99286,3341.3,3340.3,0.05986312]
[1722261886885,2.99304,3341.1,3340.0,2.994]
[1722261887143,2.99321,3340.9,3339.9,2.4946]
[1722261887290,2.99347,3340.6,3339.9,2.4946]
[1722261887488,2.99339,3340.7,3339.9,2.4946]
[1722261887688,2.99329,3340.8,3339.9,2.4946]
[1722261888003,2.99256,3341.7,3339.9,0.24946]
[1722261888004,0.60747545,3341.7,3339.9,0.24946]
[1722261888216,2.99339,3340.7,3339.4,3.533]
[1722261888408,3.0,3341.7,3339.3,2.4633]
[1722261888409,2.99329,3340.8,3339.5,2.99441]
[1722261888649,2.99316,3341.0,3339.4,3.30565114]
[1722261888834,2.99283,3341.4,3339.4,0.31115114]
[1722261888999,2.99371,3340.4,3339.4,0.31115114]
[1722261889199,2.99347,3340.6,3339.4,0.31115114]
[1722261889549,2.9932,3340.9,3339.4,3.30568114]
[1722261889699,2.99349,3340.6,3339.4,6.30015114]
[1722261889897,0.42906718,3341.3,3339.4,6.30015114]
[1722261889898,2.99347,3340.7,3339.5,0.87634511]
[1722261890128,2.9933,3340.8,3339.7,2.99425]
[1722261890452,2.99331,3340.8,3339.8,3.05405371]
[1722261890603,2.99287,3341.3,3339.8,0.05987371]
[1722261890804,2.99287,3341.3,3339.9,2.99408]
[1722261891004,2.99287,3341.3,3340.0,3.35927049]
[1722261891347,2.99281,3341.4,3340.3,2.99367]
[1722261891506,2.99267,3341.5,3340.5,2.9935]
[1722261891706,1.00147286,3342.0,3340.6,0.05985842]
[1722261891932,0.60747545,3342.2,3340.7,0.05985886]
[1722261892261,2.99222,3342.0,3340.9,2.9932]
[1722261892549,2.99213,3342.1,3341.0,0.0598481]
[1722261892748,2.9918,3342.5,3341.2,2.99292]
[1722261893053,2.99178,3342.5,3341.5,5.32536]
[1722261893200,2.99203,3342.3,3341.6,0.05984022]
[1722261893401,2.99203,3342.3,3341.5,2.3327]
[1722261893606,2.99203,3342.3,3341.5,2.56597]
[1722261893840,2.9922,3342.1,3341.0,0.30530681]
[1722261894058,2.99205,3342.2,3341.0,0.30530681]
[1722261894378,2.99213,3342.1,3341.0,0.30530681]
[1722261894515,2.99222,3342.0,3341.1,0.56904868]
[1722261894703,2.99236,3341.9,3341.0,0.30530681]
[1722261894903,2.99213,3342.1,3341.0,0.30530681]
[1722261895156,2.99222,3342.0,3341.0,0.30530681]
[1722261895306,2.99187,3342.4,3341.2,2.99287]
[1722261895505,1.52256372,3343.1,3341.2,2.99287]
[1722261895506,2.99184,3342.5,3341.4,2.99267]
[1722261895825,2.99184,3342.5,3341.3,0.05984129]
[1722261895826,2.99221,3342.1,3341.1,1.11903968]
[1722261896003,2.9921,3342.2,3341.2,0.68093265]
[1722261896199,3.59910545,3342.7,3341.3,0.05984438]
[1722261896200,2.99176,3342.6,3341.3,0.05984438]
[1722261896403,2.99206,3342.2,3341.1,0.56903968]
[1722261896602,2.99196,3342.3,3341.2,3.05277435]
[1722261896833,2.99177,3342.5,3341.4,2.99275]
[1722261897043,0.60747545,3342.7,3341.3,0.05984099]
[1722261897368,0.60747545,3342.8,3341.4,0.66441209]
[1722261897672,2.99219,3342.1,3341.0,2.99308]
[1722261898007,2.99204,3342.2,3341.1,2.99302]
[1722261898209,2.99193,3342.4,3341.2,0.0598444]
[1722261898510,3.59906545,3342.7,3341.4,2.99273]
[1722261898709,3.59521291,3342.7,3341.5,0.66439036]
[1722261898908,2.99201,3342.3,3341.3,0.55]
[1722261899218,2.99162,3342.7,3341.4,3.05252782]
[1722261899425,2.99178,3342.5,3341.4,0.05983782]
[1722261899756,0.60747545,3342.9,3341.4,0.05983782]
[1722261899757,2.99144,3342.9,3341.6,2.9925]
[1722261899905,2.99161,3342.7,3341.6,2.9925]
[1722261900103,2.99142,3342.9,3341.7,0.97010688]
[1722261900341,2.99156,3342.8,3341.7,3.96258688]
[1722261900564,2.99159,3342.7,3341.7,0.55]
[1722261900852,2.99168,3342.6,3341.6,0.55]
[1722261901034,2.99168,3342.6,3341.7,0.42011388]
[1722261901207,2.99153,3342.8,3341.8,0.05983531]
[1722261901413,3.60192692,3343.0,3341.8,3.05216531]
[1722261901414,2.99135,3343.0,3341.8,3.05216531]
[1722261901948,2.99151,3342.8,3341.8,3.05222531]
[1722261902283,2.99151,3342.8,3341.9,0.30522253]
[1722261902435,2.99135,3343.0,3342.0,0.05983032]
[1722261902640,2.99141,3342.9,3342.0,0.05983032]
[1722261902872,2.99157,3342.8,3342.0,2.4913]
[1722261903042,2.99159,3342.7,3342.0,2.4913]
[1722261903404,2.99143,3342.9,3342.1,0.33948411]
[1722261903539,2.99143,3342.9,3342.1,0.27965225]
[1722261903735,2.99133,3343.0,3342.1,0.27965225]
[1722261903988,2.99109,3343.3,3342.2,0.57631923]
[1722261904292,1.52605436,3343.9,3342.3,2.99188]
[1722261904293,0.61057692,3343.7,3342.3,2.99188]
[1722261904452,2.99088,3343.5,3342.4,2.99185]
[1722261904653,2.99088,3343.5,3342.5,1.26100492]
[1722261904855,2.4452,3344.2,3342.5,1.26100492]
[1722261904856,2.99076,3343.7,3342.7,2.99157]
[1722261905184,2.99076,3343.7,3342.8,0.05981723]
[1722261905338,2.99052,3343.9,3342.9,2.99139]
[1722261905541,2.99052,3343.9,3343.0,0.05981495]
[1722261905542,2.99087,3343.6,3343.0,0.05981495]
[1722261905739,2.99087,3343.6,3342.5,4.25274492]
[1722261906037,2.99103,3343.4,3342.3,2.99189]
[1722261906554,0.60943002,3343.7,3342.0,2.4913]
[1722261906879,2.99115,3343.2,3342.0,2.4913]
[1722261907081,0.60943002,3343.6,3342.0,5.48351]
[1722261907233,0.91414503,3343.8,3342.3,2.99194]
[1722261907234,2.99088,3343.5,3342.3,2.99194]
[1722261907434,2.99163,3342.7,3342.1,0.901651]
[1722261907687,2.99168,3342.6,3342.0,2.4913]
[1722261907993,3.60013002,3343.7,3341.7,1.93]
[1722261907994,2.99223,3342.0,3341.7,1.93]
[1722261908178,2.99142,3342.9,3341.8,0.05984126]
[1722261908382,2.99191,3342.4,3341.8,0.05984126]
[1722261908568,2.9915,3342.8,3341.8,0.25882539]
[1722261908768,2.99159,3342.7,3341.8,0.25882539]
[1722261908975,0.60943002,3343.1,3341.7,1.93]
[1722261909156,2.9915,3342.8,3341.9,0.05983306]
[1722261909356,2.99128,3343.1,3341.4,2.4363]
[1722261909578,2.99212,3342.2,3341.5,0.05983897]
[1722261909778,2.99213,3342.1,3341.5,0.05983897]
[1722261910015,2.99188,3342.4,3341.5,0.05983897]
[1722261910333,3.90017706,3343.0,3341.5,0.05983897]
[1722261910334,2.99177,3342.5,3341.5,0.05983897]
[1722261910605,2.99189,3342.4,3341.6,0.05983894]
[1722261910907,2.99213,3342.1,3341.6,0.05983894]
[1722261911410,2.99189,3342.4,3341.6,0.05983894]
[1722261911613,2.99189,3342.4,3341.6,0.60873583]
[1722261911832,2.99189,3342.4,3341.6,0.05983894]
[1722261911981,2.99163,3342.7,3341.6,0.05983894]
[1722261912187,2.9921,3342.2,3341.6,0.05983894]
[1722261912517,2.99163,3342.7,3341.6,0.05983894]
[1722261912518,2.99166,3342.7,3341.6,0.05983894]
[1722261912807,2.99178,3342.5,3341.7,0.54887989]
[1722261913012,2.99172,3342.6,3341.8,0.05983648]
[1722261913908,2.9915,3342.8,3341.8,0.05983648]
[1722261914126,3.290478,3343.0,3341.9,0.36012064]
[1722261914324,2.99135,3343.0,3342.0,0.05983165]
[1722261914540,2.99135,3343.0,3342.0,3.05197165]
[1722261914838,2.99135,3343.0,3342.0,0.05983165]
[1722261915010,2.99159,3342.7,3341.7,0.54887989]
[1722261915190,2.99142,3342.9,3341.8,2.99238]
[1722261915394,3.6009627,3343.4,3341.9,0.65337399]
[1722261915395,2.9915,3342.8,3341.9,0.65337399]
[1722261915742,2.9915,3342.8,3341.4,2.4363]
[1722261915743,2.99231,3341.9,3341.4,2.4363]
[1722261916038,2.99214,3342.1,3341.4,2.4363]
[1722261916639,2.99259,3341.6,3340.8,2.4257]
[1722261916791,2.99243,3341.8,3340.8,2.4257]
[1722261917015,2.99243,3341.8,3340.9,0.55]
[1722261917535,2.99236,3341.9,3340.9,0.55]
[1722261917740,6.98269088,3342.2,3340.9,0.55]
[1722261917939,2.99223,3342.0,3341.0,0.621149]
[1722261918441,5.99207,3342.2,3341.0,3.614249]
[1722261918442,2.99213,3342.1,3341.0,3.614249]
[1722261918646,2.99223,3342.0,3341.0,0.621149]
[1722261918948,2.99223,3342.0,3341.1,0.6832639]
[1722261919150,3.6018627,3342.4,3341.2,0.05984472]
[1722261919315,1.2199854,3342.7,3340.9,0.55]
[1722261919316,2.99221,3342.1,3341.3,4.12283917]
[1722261919633,2.9923,3342.0,3341.3,0.55]
[1722261919935,2.9923,3342.0,3341.0,0.55]
[1722261920289,0.6099927,3342.4,3341.0,0.55]
[1722261920532,2.99249,3341.7,3341.0,0.55]
[1722261920737,2.99231,3341.9,3341.0,0.55]
[1722261920941,2.99231,3341.9,3341.0,1.56305436]
[1722261921145,2.99273,3341.5,3341.0,1.56305436]
[1722261921319,2.99249,3341.7,3341.0,0.55]
[1722261921515,2.99233,3341.9,3341.0,0.55]
[1722261921721,2.99222,3342.0,3341.1,0.673127]
[1722261921905,0.6099927,3342.4,3341.1,0.673127]
[1722261921906,2.99233,3341.9,3341.1,0.673127]
[1722261922249,3.6019727,3342.3,3341.2,0.05984563]
[1722261922404,2.9921,3342.2,3341.3,0.05984105]
[1722261922611,3.6099927,3342.6,3341.4,3.513]
[1722261922612,0.6099927,3342.6,3341.4,3.513]
[1722261922831,2.99177,3342.5,3341.5,1.26640156]
[1722261923235,2.99177,3342.5,3341.5,1.20656611]
[1722261923434,0.6099927,3342.9,3341.5,1.20656611]
[1722261923435,2.99143,3342.9,3341.9,3.513]
[1722261923762,1.03607913,3342.8,3342.0,0.05983394]
[1722261923973,2.99112,3343.3,3342.2,2.99203]
[1722261924253,1.0359833,3343.2,3342.3,0.05982331]
[1722261924455,2.99112,3343.3,3342.3,0.05982331]
[1722261924668,2.99102,3343.4,3342.4,3.85975081]
[1722261924870,2.99102,3343.4,3342.5,0.05982238]
[1722261925161,2.99106,3343.3,3342.5,0.05982238]
[1722261925457,2.99087,3343.5,3342.6,2.2671]
[1722261925657,2.99087,3343.5,3342.7,0.97765945]
[1722261925870,2.99087,3343.5,3342.8,0.05981814]
[1722261926293,2.99069,3343.7,3342.8,0.05981814]
[1722261926435,2.99061,3343.8,3342.8,0.05981814]
[1722261926635,2.99061,3343.8,3342.8,0.98263409]
[1722261926840,4.02654303,3343.7,3342.8,0.98263409]
[1722261927165,2.9907,3343.7,3342.8,0.98263409]
[1722261927363,2.99097,3343.4,3342.9,0.62413541]
[1722261927535,2.99097,3343.4,3342.6,2.2671]
[1722261927870,2.9907,3343.7,3342.7,0.05981746]
[1722261928041,2.9907,3343.7,3342.8,0.05981546]
[1722261928383,2.99053,3343.9,3342.8,3.05126546]
[1722261928663,2.99054,3343.9,3342.8,0.05981546]
[1722261928872,2.99093,3343.5,3342.6,2.2671]
[1722261929022,2.99097,3343.4,3342.6,2.2671]
[1722261929426,2.99072,3343.7,3342.6,2.2671]
[1722261929625,2.99072,3343.7,3342.7,0.05981749]
[1722261929862,2.99072,3343.7,3342.8,0.05981556]
[1722261930063,2.99053,3343.9,3342.8,3.05131556]
[1722261930267,2.99087,3343.5,3342.6,2.2671]
[1722261930478,0.299053,3343.9,3340.6,2.96568903]
[1722261930479,2.9914,3343.0,3342.2,2.4081]
[1722261930680,2.99132,3343.1,3341.8,2.99]
[1722261930827,2.99147,3342.9,3341.8,2.99]
[1722261931026,2.99151,3342.8,3341.8,2.99]
[1722261931270,2.99147,3342.9,3341.8,2.99]
[1722261931470,2.99147,3342.9,3341.8,5.98239]
[1722261931638,3.60153835,3343.1,3342.2,2.99197]
[1722261931639,0.61028835,3343.1,3342.2,2.99197]
[1722261931843,0.0610121,3342.8,3342.3,0.35902103]
[1722261932043,0.0610121,3342.8,3342.4,3.57282155]
[1722261932261,2.99044,3344.0,3342.4,3.57282155]
[1722261932587,0.61078319,3344.0,3342.9,2.99135]
[1722261932747,2.99067,3343.8,3343.0,0.05981341]
[1722261933078,2.99067,3343.8,3342.5,0.63429186]
[1722261933079,0.05936779,3343.7,3342.5,0.63429186]
[1722261933351,0.05936779,3343.7,3342.7,2.99151]
[1722261933512,2.99061,3343.8,3342.8,0.05981483]
[1722261933671,3.05025662,3343.6,3342.6,1.24173889]
[1722261933873,3.05025662,3343.6,3342.7,0.83806708]
[1722261933874,0.05946662,3343.6,3342.7,0.83806708]
[1722261934207,2.99062,3343.8,3342.7,3.82958708]
[1722261934512,0.05931402,3343.5,3342.7,3.82964708]
[1722261934663,0.05956088,3343.7,3342.8,3.05128492]
[1722261934868,0.05943239,3343.4,3342.8,0.05981492]
[1722261935174,0.61078319,3344.1,3343.3,2.99101]
[1722261935405,2.4708,3344.8,3343.4,9.02823356]
[1722261935406,0.61078319,3344.6,3343.4,9.02823356]
[1722261935711,0.91617478,3344.8,3343.7,2.99068]
[1722261935712,1.52226718,3344.5,3343.7,2.99068]
[1722261935887,0.61078319,3344.8,3343.8,3.05039861]
[1722261935888,2.98975,3344.8,3343.8,3.05039861]
[1722261936090,1.52213958,3344.7,3343.9,2.99051]
[1722261936287,0.61078319,3345.0,3344.0,0.05979767]
[1722261936486,3.60014319,3345.2,3344.2,2.99023]
[1722261936706,1.52198828,3345.1,3344.4,8.99175]
[1722261937004,2.98951,3345.1,3344.4,2.4887]
[1722261937204,1.52204649,3345.0,3344.0,2.99035]
[1722261937379,0.61078319,3345.5,3344.2,2.99024]
[1722261937701,1.67474083,3345.4,3344.2,0.34385055]
[1722261937890,1.52204503,3345.3,3344.2,0.34385055]
[1722261938203,1.52204503,3345.3,3343.9,6.0017]
[1722261938795,1.52204503,3345.3,3344.1,2.99032]
[1722261939003,1.52204503,3345.3,3344.0,2.99042]
[1722261939584,0.1526958,3345.4,3344.0,2.99042]
[1722261939585,0.61078319,3345.2,3344.0,2.99042]
[1722261939931,0.61078319,3345.2,3343.9,6.0017]
[1722261939932,1.52201217,3345.1,3344.1,1.198272]
[1722261940522,1.52201217,3345.1,3344.1,4.188602]
[1722261940722,0.61078319,3345.2,3344.3,2.99009]
[1722261940922,0.61078319,3345.2,3344.4,3.57278761]
[1722261941226,0.61078319,3345.2,3344.5,3.64620776]
[1722261941428,0.61078319,3345.2,3344.5,0.65628776]
[1722261942085,0.61078319,3345.2,3343.5,0.90282336]
[1722261942313,2.98964,3344.9,3343.6,0.05979954]
[1722261942512,1.52218005,3344.8,3343.7,2.99069]
[1722261942726,2.98969,3344.9,3343.6,2.99073]
[1722261942891,2.98969,3344.9,3343.7,0.65796652]
[1722261943230,0.05989478,3344.8,3343.8,0.05979895]
[1722261943425,0.05989478,3344.8,3343.7,7.101807]
[1722261943626,2.99016,3344.3,3343.2,3.513]
[1722261943785,2.98999,3344.5,3343.4,2.99095]
[1722261943986,2.99021,3344.3,3343.2,3.513]
[1722261944185,0.0599158,3344.4,3343.3,1.182069]
[1722261944429,0.05975066,3344.2,3343.5,2.99079]
[1722261944627,3.0,3345.4,3343.3,1.182069]
[1722261944817,2.98968,3344.9,3343.8,2.99058]
[1722261945018,2.98973,3344.8,3343.8,2.99058]
[1722261945224,3.04789726,3344.8,3343.6,2.99073]
[1722261945419,0.05816726,3344.8,3343.7,0.55]
[1722261945727,2.99013,3344.4,3343.7,0.55]
[1722261945901,2.99016,3344.3,3343.4,0.55]
[1722261946232,2.99016,3344.3,3343.5,0.705407]
[1722261946409,0.0578129,3344.2,3343.6,0.55]
[1722261946609,2.99012,3344.4,3343.6,0.55]
[1722261947023,3.0,3345.5,3343.5,0.705407]
[1722261947024,3.04606333,3344.3,3343.5,0.705407]
[1722261947228,2.99043,3344.0,3342.9,5.443]
[1722261947431,2.99029,3344.2,3342.9,1.93]
[1722261947735,2.98992,3344.6,3343.0,2.99132]
[1722261947736,3.0,3344.6,3343.0,2.99132]
[1722261947921,2.99008,3344.4,3343.1,4.133632]
[1722261948122,0.59276793,3344.5,3343.2,2.99107]
[1722261948319,0.05569626,3344.3,3343.3,3.05085162]
[1722261948488,3.0458221,3344.4,3343.4,2.9909]
[1722261948732,0.05557587,3344.2,3343.5,3.05061162]
[1722261948940,0.05563172,3344.3,3343.7,2.99064]
[1722261949142,0.05548676,3344.1,3343.8,0.36484578]
[1722261949314,0.05548676,3344.1,3343.8,0.30504416]
[1722261949523,2.98977,3344.8,3343.8,0.30504416]
[1722261949844,2.3696,3345.3,3343.9,0.56061542]
[1722261949845,0.05601722,3344.7,3343.9,0.56061542]
[1722261949995,0.05601722,3344.7,3344.0,2.99037]
[1722261950300,2.98953,3345.0,3343.8,0.30504416]
[1722261950502,0.0559614,3344.6,3343.9,2.99045]
[1722261950838,0.05586653,3344.5,3343.8,3.29563416]
[1722261951200,2.98962,3344.9,3343.8,3.29556416]
[1722261951402,0.05591302,3344.4,3343.9,0.56060642]
[1722261951634,2.98951,3345.1,3344.0,0.05979639]
[1722261951803,0.05575789,3344.3,3344.1,2.99033]
[1722261952005,0.05575789,3344.3,3344.2,0.0597964]
[1722261952220,0.61087476,3345.4,3343.9,0.56060842]
[1722261952435,0.05572054,3344.3,3343.6,2.3105]
[1722261952653,0.61087476,3344.9,3343.1,3.538332]
[1722261952815,0.0556647,3344.2,3342.9,5.443]
[1722261953019,2.99066,3343.8,3342.9,4.92136]
[1722261953363,2.99008,3344.4,3342.9,4.92136]
[1722261953364,0.61087476,3344.5,3342.9,1.93]
[1722261953512,2.99078,3343.6,3343.0,0.791148]
[1722261953712,2.99045,3344.0,3343.0,2.99125]
[1722261953919,0.05526969,3343.5,3343.1,2.99121]
[1722261954153,0.15271869,3344.4,3343.1,2.99121]
[1722261954154,2.99024,3344.3,3343.2,3.483261]
[1722261954369,3.14283869,3344.4,3341.3,2.4952]
[1722261954370,2.2902,3343.3,3341.3,2.4952]
[1722261954563,0.61087476,3343.0,3341.4,0.05984409]
[1722261954784,0.61087476,3343.0,3341.3,2.4952]
[1722261954785,2.99144,3342.9,3341.6,2.99254]
[1722261955060,2.99144,3342.9,3341.5,0.25550441]
[1722261955061,3.04592864,3342.9,3341.7,2.99248]
[1722261955218,0.05444864,3342.9,3341.5,0.25550441]
[1722261955422,2.99161,3342.7,3341.5,0.25550441]
[1722261955652,0.05489916,3342.8,3341.5,0.25550441]
[1722261955875,2.99206,3342.2,3341.5,0.25550441]
[1722261956374,0.05478638,3342.7,3341.5,0.25550441]
[1722261956375,2.992,3342.3,3341.5,0.25550441]
[1722261956518,0.05375484,3342.1,3341.5,0.25550441]
[1722261956721,2.99218,3342.1,3341.5,0.25550441]
[1722261956921,0.05388126,3342.0,3341.5,0.25550441]
[1722261957723,0.05388126,3342.0,3341.6,0.05984121]
[1722261958035,2.99205,3342.2,3341.5,0.25550441]
[1722261958858,3.04643354,3342.1,3341.5,0.25550441]
[1722261959627,0.05430354,3342.1,3341.6,0.05984196]
[1722261959819,2.99201,3342.3,3341.6,0.05984196]
[1722261960027,0.05424763,3342.0,3341.6,0.6401746]
[1722261960338,2.99201,3342.3,3341.6,0.6401746]
[1722261960539,0.05385257,3341.9,3341.8,2.99239]
[1722261960788,0.61087476,3343.1,3342.1,2.99212]